bitfinex/quotes_BTCUSD_20220115
["timestamp","ask_amount","ask_price","bid_price","bid_amount"]
[1642253380603,0.02,42878.0,42875.0,0.68551277]
[1642253381002,0.02,42878.0,42875.0,0.64071277]
[1642253381842,0.02,42878.0,42875.0,0.99750864]
[1642253383743,0.02,42878.0,42876.0,1.89383983]
[1642253383942,0.02,42878.0,42875.0,0.99750864]
[1642253384144,0.33205334,42878.0,42875.0,0.99750864]
[1642253384542,0.02,42878.0,42875.0,0.99750864]
[1642253384943,0.13865928,42877.0,42875.0,0.99750864]
[1642253385144,0.13497314,42877.0,42875.0,0.99750864]
[1642253385398,0.02,42878.0,42874.0,0.0160892]
[1642253385598,0.26906373,42877.0,42874.0,0.0160892]
[1642253385799,0.02,42878.0,42874.0,0.0160892]
[1642253386004,0.02,42878.0,42872.0,0.2953722]
[1642253386600,0.13101902,42880.0,42872.0,0.2953722]
[1642253386900,0.379402,42880.0,42873.0,0.99753026]
[1642253387102,0.479402,42880.0,42873.0,0.99753026]
[1642253387705,0.4788701,42880.0,42873.0,0.99753026]
[1642253388510,0.00128304,42879.0,42873.0,0.99753026]
[1642253389342,1.39275585,42874.0,42873.0,1.68496515]
[1642253389543,0.64275585,42874.0,42873.0,1.68496515]
[1642253389743,0.05960204,42879.0,42873.0,1.68496515]
[1642253390144,0.00128304,42879.0,42873.0,0.68743489]
[1642253390345,0.00128304,42879.0,42870.0,0.97394426]
[1642253390544,0.13516198,42879.0,42870.0,0.97394426]
[1642253390744,0.13727546,42879.0,42870.0,0.97394426]
[1642253390945,0.13727546,42879.0,42870.0,0.92924426]
[1642253391749,0.13727546,42879.0,42874.0,0.58964061]
[1642253392547,0.00128304,42879.0,42874.0,0.58964061]
[1642253394293,0.00128304,42879.0,42875.0,0.58964061]
[1642253395095,0.1,42885.0,42875.0,0.58964061]
[1642253395295,0.00122385,42887.0,42875.0,0.58964061]
[1642253395495,0.00122385,42887.0,42882.0,0.32968272]
[1642253395796,0.375098,42886.0,42882.0,0.32968272]
[1642253395997,0.3053583,42892.0,42882.0,0.28488272]
[1642253396643,0.32226338,42891.0,42882.0,0.34317972]
[1642253396848,0.3053583,42892.0,42882.0,0.40147371]
[1642253397043,0.3053583,42892.0,42882.0,0.34317671]
[1642253397844,0.4053583,42892.0,42882.0,0.34317671]
[1642253398046,0.3953583,42892.0,42882.0,0.34317671]
[1642253398747,0.3953583,42892.0,42883.0,0.058294]
[1642253400147,0.00127593,42893.0,42883.0,0.19006663]
[1642253400598,0.9763,42895.0,42883.0,0.19006663]
[1642253400798,0.311437,42899.0,42883.0,0.19006663]
[1642253400999,0.55381893,42899.0,42893.0,0.26909054]
[1642253401200,0.375098,42898.0,42890.0,0.058278]
[1642253401405,0.009337,42899.0,42890.0,0.058278]
[1642253401599,0.009337,42899.0,42889.0,0.23311509]
[1642253402200,0.009337,42899.0,42891.0,0.058284]
[1642253402401,0.28674797,42899.0,42893.0,0.26923718]
[1642253402901,0.375098,42898.0,42893.0,0.26923718]
[1642253403101,0.475098,42898.0,42893.0,0.26923718]
[1642253403501,0.29326866,42894.0,42889.0,0.22371109]
[1642253403905,0.1,42898.0,42889.0,0.22371109]
[1642253404448,0.28674797,42899.0,42889.0,0.22371109]
[1642253404648,0.28674797,42899.0,42890.0,0.058285]
[1642253404848,0.32945821,42895.0,42889.0,0.116556]
[1642253405050,0.28674797,42899.0,42889.0,0.116556]
[1642253405251,0.28674797,42899.0,42889.0,0.346556]
[1642253406049,0.28674797,42899.0,42889.0,0.301756]
[1642253406249,0.28034667,42897.0,42889.0,0.301756]
[1642253406453,0.28034667,42897.0,42890.0,0.05828297]
[1642253406650,0.28034667,42897.0,42891.0,0.058285]
[1642253406850,0.28034667,42897.0,42892.0,0.32015122]
[1642253407050,0.28034667,42897.0,42889.0,0.23]
[1642253407897,0.28034667,42897.0,42889.0,0.288288]
[1642253408096,0.28034667,42897.0,42892.0,0.28623424]
[1642253408302,0.37741097,42899.0,42889.0,0.273288]
[1642253408498,0.37741097,42899.0,42889.0,0.23]
[1642253409300,0.03200706,42894.0,42889.0,0.23]
[1642253409600,0.03200706,42894.0,42891.0,0.25048447]
[1642253410201,0.03200706,42894.0,42889.0,0.23]
[1642253411001,0.03200706,42894.0,42889.0,0.1854]
[1642253411202,0.03200706,42894.0,42891.0,0.24940024]
[1642253411655,0.03200706,42894.0,42889.0,0.1854]
[1642253412451,0.03200706,42894.0,42889.0,0.30197208]
[1642253412653,0.03200706,42894.0,42892.0,0.25869871]
[1642253412852,0.03200706,42894.0,42889.0,0.1854]
[1642253413954,0.32017443,42892.0,42889.0,0.1854]
[1642253414553,0.01600353,42890.0,42889.0,0.1854]
[1642253414753,0.35211934,42890.0,42889.0,0.1854]
[1642253415153,1.55211934,42890.0,42889.0,0.1854]
[1642253415599,0.35211934,42890.0,42889.0,0.1854]
[1642253415997,1.00211934,42890.0,42889.0,0.1407]
[1642253416199,1.37721734,42890.0,42889.0,0.1407]
[1642253416598,0.72721734,42890.0,42889.0,0.1407]
[1642253417599,0.82721734,42890.0,42889.0,0.1407]
[1642253418198,1.22721734,42890.0,42889.0,0.1407]
[1642253418399,0.82721734,42890.0,42889.0,0.1407]
[1642253421059,1.22721734,42890.0,42889.0,0.096]
[1642253422559,0.82721734,42890.0,42889.0,0.096]
[1642253424006,1.52721734,42890.0,42889.0,0.096]
[1642253424205,1.52721734,42890.0,42889.0,0.091]
[1642253424608,0.82721734,42890.0,42889.0,0.091]
[1642253425405,0.72721734,42890.0,42889.0,0.091]
[1642253425605,0.82721734,42890.0,42889.0,0.091]
[1642253426005,0.72721734,42890.0,42889.0,0.0463]
[1642253426847,0.35211934,42890.0,42889.0,0.0463]
[1642253427049,0.009337,42901.0,42890.0,0.6]
[1642253427251,0.009337,42901.0,42897.0,0.00129941]
[1642253428047,0.009337,42901.0,42899.0,0.33247471]
[1642253428347,0.33878102,42901.0,42898.0,0.058269]
[1642253428544,0.33878102,42901.0,42898.0,0.17481008]
[1642253429146,0.009337,42901.0,42900.0,0.0201]
[1642253429645,0.009337,42901.0,42900.0,0.136627]
[1642253429848,0.009337,42901.0,42900.0,0.39884759]
[1642253430704,0.009337,42901.0,42900.0,0.54186446]
[1642253431106,0.009337,42901.0,42900.0,0.49686446]
[1642253431506,0.3657895,42909.0,42900.0,0.49686446]
[1642253431706,0.3657895,42909.0,42906.0,0.05825697]
[1642253432008,0.3657895,42909.0,42906.0,0.11651797]
[1642253432205,0.0011,42916.0,42907.0,0.29255257]
[1642253432509,0.33999814,42914.0,42907.0,0.41994293]
[1642253432705,0.375098,42913.0,42907.0,0.12739036]
[1642253432905,0.375098,42913.0,42905.0,0.11651393]
[1642253433106,0.33999814,42914.0,42909.0,0.05825738]
[1642253433306,0.7375341,42913.0,42910.0,0.058256]
[1642253433708,0.0011,42916.0,42912.0,1.65128237]
[1642253433909,0.0033209,42923.0,42914.0,0.9012825]
[1642253434157,0.0033209,42923.0,42915.0,0.77054662]
[1642253434158,0.00455467,42923.0,42915.0,0.77054662]
[1642253434354,0.0033209,42923.0,42915.0,0.77054662]
[1642253434555,0.0033209,42923.0,42918.0,0.058238]
[1642253434755,0.0031,42926.0,42919.0,1.50859747]
[1642253434756,0.0096529,42924.0,42919.0,1.50859747]
[1642253435158,0.0096529,42924.0,42921.0,0.05823565]
[1642253435357,0.0096529,42924.0,42922.0,0.51723828]
[1642253435755,0.0096529,42924.0,42923.0,1.19214128]
[1642253435955,0.0096529,42924.0,42923.0,1.425097]
[1642253436155,0.0096529,42924.0,42923.0,0.375097]
[1642253437155,0.0096529,42924.0,42922.0,0.11647393]
[1642253437357,0.0096529,42924.0,42923.0,0.375097]
[1642253437555,0.0096529,42924.0,42922.0,0.11647393]
[1642253438395,0.0096529,42924.0,42923.0,0.375097]
[1642253438994,0.0096529,42924.0,42923.0,0.23]
[1642253439194,0.0096529,42924.0,42923.0,0.36463231]
[1642253439395,0.0096529,42924.0,42923.0,0.605097]
[1642253439795,0.0096529,42924.0,42923.0,0.23]
[1642253440896,0.27586251,42929.0,42923.0,0.23]
[1642253441096,0.27586251,42929.0,42924.0,0.01364]
[1642253441567,0.32461866,42934.0,42924.0,0.01364]
[1642253441765,0.375097,42933.0,42924.0,0.01364]
[1642253442167,0.475097,42933.0,42924.0,0.01364]
[1642253442564,0.26408032,42930.0,42924.0,0.01364]
[1642253442765,0.1,42933.0,42924.0,0.01364]
[1642253443168,0.22461866,42934.0,42924.0,0.01364]
[1642253443768,0.22461866,42934.0,42925.0,0.05823858]
[1642253443966,0.375097,42933.0,42928.0,0.058236]
[1642253444166,0.475097,42933.0,42928.0,0.058236]
[1642253445170,0.465097,42933.0,42928.0,0.058236]
[1642253445395,0.365097,42933.0,42928.0,0.058236]
[1642253445596,0.365097,42933.0,42928.0,0.116468]
[1642253445802,0.360097,42933.0,42931.0,0.058231]
[1642253446197,0.360097,42933.0,42931.0,0.013531]
[1642253446896,0.002,42935.0,42931.0,0.013531]
[1642253447097,0.002,42935.0,42929.0,1.88282007]
[1642253447499,0.002,42935.0,42930.0,0.058234]
[1642253447698,0.375056,42934.0,42928.0,0.058236]
[1642253447896,0.25200232,42936.0,42928.0,0.058236]
[1642253448097,0.375056,42935.0,42928.0,0.058236]
[1642253448497,0.475056,42935.0,42928.0,0.058236]
[1642253449051,0.475056,42935.0,42923.0,0.404715]
[1642253449253,0.3220405,42926.0,42923.0,0.346476]
[1642253449652,0.00120638,42933.0,42923.0,0.346476]
[1642253450053,0.00120982,42934.0,42923.0,0.346476]
[1642253450256,0.00120982,42934.0,42924.0,0.1452531]
[1642253450655,0.27180344,42931.0,42924.0,0.1452531]
[1642253450856,0.27100991,42931.0,42924.0,0.1452531]
[1642253451053,0.30133801,42927.0,42924.0,0.1006531]
[1642253451254,0.30133801,42927.0,42923.0,0.23]
[1642253452056,0.30133801,42927.0,42923.0,0.288245]
[1642253452655,0.10120982,42934.0,42924.0,0.1305946]
[1642253452903,0.10120982,42934.0,42924.0,0.2470686]
[1642253453101,0.001,42937.0,42924.0,0.2470686]
[1642253453304,0.001,42937.0,42928.0,0.05823497]
[1642253453702,0.33839202,42935.0,42929.0,0.27252993]
[1642253453902,0.33839202,42935.0,42930.0,0.058234]
[1642253454103,0.43839202,42935.0,42928.0,0.05823497]
[1642253454703,0.33839202,42935.0,42926.0,0.0582372]
[1642253454905,0.43839202,42935.0,42927.0,0.54912249]
[1642253455104,0.43839202,42935.0,42927.0,0.058239]
[1642253456110,0.375056,42934.0,42923.0,0.1853]
[1642253456308,0.00128281,42933.0,42923.0,0.1853]
[1642253457154,0.25022771,42928.0,42923.0,0.1853]
[1642253458257,0.24522771,42928.0,42923.0,0.24354026]
[1642253458458,0.14625635,42933.0,42923.0,0.24354026]
[1642253458662,0.14625635,42933.0,42924.0,0.058239]
[1642253459258,0.00128281,42933.0,42924.0,0.11647846]
[1642253459459,0.3020272,42931.0,42923.0,0.301772]
[1642253459659,0.4020272,42931.0,42923.0,0.301772]
[1642253460319,0.4020272,42931.0,42923.0,0.1853]
[1642253461117,0.055,42936.0,42924.0,0.10236715]
[1642253461319,0.055,42936.0,42929.0,0.05823024]
[1642253462115,0.26537867,42935.0,42929.0,0.05823024]
[1642253462315,0.3433318,42936.0,42929.0,0.05823024]
[1642253462515,0.3433318,42936.0,42930.0,0.058234]
[1642253462717,0.3433318,42936.0,42927.0,0.26115683]
[1642253462718,0.375056,42935.0,42927.0,0.26115683]
[1642253462916,0.155,42936.0,42927.0,0.11646047]
[1642253463214,0.155,42936.0,42929.0,1.93787497]
[1642253463415,0.155,42936.0,42931.0,0.05822955]
[1642253463615,0.155,42936.0,42928.0,0.116457]
[1642253463616,0.2785974,42933.0,42928.0,0.116457]
[1642253463815,0.2785974,42933.0,42921.0,0.13923056]
[1642253464447,0.055,42936.0,42924.0,0.14439692]
[1642253464650,0.055,42936.0,42925.0,0.00126541]
[1642253465248,0.055,42936.0,42924.0,0.14439692]
[1642253465447,0.055,42936.0,42930.0,0.2608098]
[1642253465647,0.375056,42935.0,42930.0,0.2608098]
[1642253465848,0.375056,42935.0,42930.0,0.058229]
[1642253466148,0.375056,42935.0,42930.0,0.013429]
[1642253466350,0.375059,42935.0,42930.0,0.013429]
[1642253466552,0.001,42938.0,42931.0,0.375059]
[1642253466848,0.001,42938.0,42929.0,0.23289194]
[1642253466849,0.001,42938.0,42937.0,0.25968086]
[1642253467647,0.001,42938.0,42937.0,0.63473986]
[1642253469103,0.001,42938.0,42937.0,0.375059]
[1642253469301,0.001,42938.0,42937.0,0.50697716]
[1642253470301,0.001,42938.0,42937.0,0.375059]
[1642253470502,0.001,42938.0,42936.0,0.05822246]
[1642253471203,0.001,42938.0,42936.0,0.27779803]
[1642253471401,0.001,42938.0,42937.0,0.375059]
[1642253473554,0.001,42938.0,42937.0,0.52044134]
[1642253473756,0.001,42938.0,42937.0,0.375059]
[1642253473955,0.001,42938.0,42937.0,0.605059]
[1642253474257,0.001,42938.0,42937.0,0.88206199]
[1642253474455,0.001,42938.0,42937.0,0.605059]
[1642253474956,0.001,42938.0,42937.0,0.23]
[1642253475155,0.001,42938.0,42937.0,0.225]
[1642253475398,0.83275709,42938.0,42937.0,0.225]
[1642253475598,0.28275709,42938.0,42937.0,0.225]
[1642253476198,0.42400484,42938.0,42937.0,0.1801]
[1642253476399,0.28275709,42938.0,42937.0,0.1801]
[1642253477199,0.42520172,42938.0,42937.0,0.1801]
[1642253477402,0.80026072,42938.0,42937.0,0.1801]
[1642253477601,2.35026072,42938.0,42937.0,0.1801]
[1642253478401,0.65781609,42938.0,42937.0,0.1801]
[1642253478903,0.101,42938.0,42937.0,0.1801]
[1642253479949,1.16547187,42938.0,42937.0,0.1801]
[1642253480149,1.64053087,42938.0,42937.0,0.1801]
[1642253480353,0.74053087,42938.0,42937.0,0.1801]
[1642253481252,0.36547187,42938.0,42937.0,0.1353]
[1642253482051,0.001,42938.0,42937.0,0.1353]
[1642253482802,0.001,42938.0,42937.0,0.1303]
[1642253483406,0.001,42938.0,42937.0,0.505359]
[1642253483706,0.001,42938.0,42937.0,0.64014446]
[1642253486310,0.001,42938.0,42937.0,0.59534446]
[1642253488252,0.001,42938.0,42937.0,0.460559]
[1642253488451,0.001,42938.0,42937.0,0.59471471]
[1642253489553,0.001,42938.0,42937.0,0.460559]
[1642253489955,0.001,42938.0,42937.0,0.58672491]
[1642253490154,0.001,42938.0,42937.0,0.455559]
[1642253490397,0.001,42938.0,42937.0,0.59329797]
[1642253490998,0.001,42938.0,42937.0,0.455559]
[1642253491401,0.001,42938.0,42937.0,0.410859]
[1642253493005,0.001,42938.0,42937.0,0.0358]
[1642253496446,0.001,42938.0,42935.0,0.11644913]
[1642253496447,0.001,42938.0,42935.0,0.10764913]
[1642253496648,0.001,42938.0,42936.0,0.63540815]
[1642253496850,0.001,42938.0,42936.0,0.49149287]
[1642253498302,0.001,42938.0,42936.0,0.11643387]
[1642253498699,0.001,42938.0,42932.0,0.99643031]
[1642253498903,0.001,42938.0,42933.0,0.375059]
[1642253499300,0.001,42938.0,42934.0,0.05822537]
[1642253499502,0.27636001,42937.0,42935.0,0.058223]
[1642253500203,0.001,42938.0,42935.0,0.058223]
[1642253500400,0.001,42938.0,42935.0,0.053223]
[1642253501200,0.26474584,42938.0,42935.0,0.053223]
[1642253501401,0.26474584,42938.0,42935.0,0.008423]
[1642253503957,0.26474584,42938.0,42935.0,0.066643]
[1642253504459,0.26474584,42938.0,42936.0,0.375059]
[1642253505060,0.26474584,42938.0,42935.0,0.008423]
[1642253505301,0.25974584,42938.0,42936.0,0.375059]
[1642253505501,0.25974584,42938.0,42932.0,0.116445]
[1642253505698,0.25974584,42938.0,42935.0,0.05822416]
[1642253506098,0.25974584,42938.0,42934.0,0.058225]
[1642253506298,0.25974584,42938.0,42934.0,0.013525]
[1642253508002,0.25974584,42938.0,42932.0,0.116445]
[1642253509748,0.25974584,42938.0,42935.0,0.058223]
[1642253509948,0.25974584,42938.0,42936.0,0.375059]
[1642253510147,0.25974584,42938.0,42935.0,0.058223]
[1642253510649,0.25974584,42938.0,42932.0,0.346445]
[1642253511448,0.25974584,42938.0,42932.0,0.301845]
[1642253511850,0.27748283,42936.0,42932.0,0.301845]
[1642253512049,0.27748283,42936.0,42933.0,0.69876]
[1642253512550,0.00126768,42934.0,42933.0,0.69376]
[1642253513220,0.0367,42935.0,42933.0,0.69376]
[1642253513421,0.1,42936.0,42933.0,0.69376]
[1642253514124,0.34315405,42935.0,42933.0,0.69376]
[1642253515321,0.25739795,42938.0,42933.0,0.69376]
[1642253515527,0.001,42940.0,42933.0,0.69376]
[1642253516023,0.001,42940.0,42934.0,0.13135881]
[1642253516224,0.001,42940.0,42935.0,0.375059]
[1642253516422,0.001,42940.0,42935.0,0.330459]
[1642253516649,0.001,42940.0,42936.0,0.11643586]
[1642253516850,0.001,42940.0,42937.0,0.5217938]
[1642253517049,0.001,42940.0,42938.0,0.4890518]
[1642253517250,0.001,42940.0,42939.0,1.2215448]
[1642253517451,0.001,42946.0,42939.0,1.07871]
[1642253517647,0.001,42946.0,42940.0,0.1428348]
[1642253517850,0.42817681,42956.0,42948.0,0.058198]
[1642253518059,0.94235792,42960.0,42949.0,0.1428348]
[1642253518060,0.009326,42960.0,42949.0,0.1428348]
[1642253518648,0.009326,42960.0,42950.0,0.37504]
[1642253518850,0.001,42966.0,42950.0,0.37004]
[1642253519051,0.001,42966.0,42957.0,0.058189]
[1642253519253,0.001,42966.0,42957.0,0.130989]
[1642253519950,0.001,42966.0,42958.0,0.45505409]
[1642253520152,0.001,42966.0,42961.0,0.058181]
[1642253520409,0.001,42966.0,42962.0,1.1989962]
[1642253520609,0.001,42966.0,42962.0,0.8580842]
[1642253520909,0.001,42966.0,42962.0,0.70329]
[1642253521107,0.001,42966.0,42962.0,0.76147688]
[1642253521314,2.65,42963.0,42962.0,0.70329]
[1642253521505,0.37616332,42963.0,42962.0,0.65839]
[1642253521705,0.00120832,42963.0,42962.0,0.65839]
[1642253522306,0.90486305,42963.0,42962.0,0.65839]
[1642253522605,1.37981805,42963.0,42962.0,0.65839]
[1642253523006,0.62981805,42963.0,42962.0,0.65839]
[1642253523209,0.374955,42963.0,42962.0,0.65839]
[1642253523405,0.33003393,42964.0,42962.0,0.65839]
[1642253523604,0.001,42966.0,42962.0,0.65839]
[1642253524056,0.27660795,42966.0,42962.0,0.65839]
[1642253524457,0.3011368,42971.0,42962.0,0.65839]
[1642253525357,0.33553449,42968.0,42962.0,0.65839]
[1642253525957,0.43553449,42968.0,42962.0,0.65839]
[1642253526356,0.43553449,42968.0,42962.0,0.61369]
[1642253526957,0.1,42968.0,42962.0,0.61369]
[1642253527158,0.1,42968.0,42962.0,0.67187552]
[1642253527358,0.4011368,42971.0,42962.0,0.67187552]
[1642253527558,0.1,42971.0,42962.0,0.61369]
[1642253527799,0.1,42971.0,42964.0,0.058184]
[1642253528100,0.32381847,42969.0,42962.0,0.61369]
[1642253528499,0.26291976,42968.0,42962.0,0.61369]
[1642253529599,0.00333036,42972.0,42964.0,0.05818373]
[1642253529798,0.00333036,42972.0,42962.0,0.61369]
[1642253529998,0.00333036,42972.0,42963.0,0.12825193]
[1642253530600,0.61356236,42970.0,42962.0,0.73006123]
[1642253530804,0.61356236,42970.0,42962.0,0.61369]
[1642253531400,0.61356236,42970.0,42962.0,0.56909]
[1642253531650,0.61356236,42970.0,42963.0,0.18676816]
[1642253531854,0.33638719,42970.0,42964.0,0.058185]
[1642253532051,0.0021,42972.0,42964.0,0.058185]
[1642253532951,0.0021,42972.0,42962.0,0.627276]
[1642253532952,0.00127929,42967.0,42962.0,0.627276]
[1642253533152,0.00127929,42967.0,42962.0,0.56909]
[1642253533951,0.31083093,42963.0,42962.0,0.56909]
[1642253534252,0.41083093,42963.0,42962.0,0.56909]
[1642253534850,0.96083093,42963.0,42962.0,0.56909]
[1642253535051,1.33578593,42963.0,42962.0,0.56909]
[1642253535736,0.78578593,42963.0,42962.0,0.56909]
[1642253535938,0.41083093,42963.0,42962.0,0.56909]
[1642253536336,0.00127929,42967.0,42962.0,0.56909]
[1642253536538,0.54189998,42972.0,42963.0,0.09736326]
[1642253536539,0.0021,42972.0,42963.0,0.09736326]
[1642253536736,0.0021,42972.0,42963.0,0.05818456]
[1642253537135,0.0021,42972.0,42962.0,0.56909]
[1642253537536,0.0021,42972.0,42966.0,0.32508174]
[1642253537735,0.0021,42972.0,42966.0,0.383262]
[1642253537937,0.0021,42972.0,42966.0,0.32508174]
[1642253538137,0.34487278,42976.0,42962.0,0.56909]
[1642253538339,0.00129946,42972.0,42963.0,0.14206326]
[1642253538541,0.00129946,42972.0,42964.0,0.058184]
[1642253539353,0.00129946,42972.0,42962.0,0.56909]
[1642253540353,0.00129946,42972.0,42963.0,0.05818482]
[1642253540756,0.4352627,42973.0,42962.0,0.56909]
[1642253541455,0.4352627,42973.0,42966.0,0.26375713]
[1642253541654,0.374955,42972.0,42966.0,0.26375713]
[1642253541854,0.374955,42972.0,42963.0,0.05818]
[1642253542055,0.1,42972.0,42965.0,0.058183]
[1642253542255,0.1,42972.0,42962.0,0.56909]
[1642253542948,0.33178273,42966.0,42962.0,0.56909]
[1642253543147,0.30056287,42963.0,42962.0,0.56909]
[1642253544550,0.40056287,42963.0,42962.0,0.56909]
[1642253545151,0.30056287,42963.0,42962.0,0.56909]
[1642253545351,0.1,42963.0,42962.0,0.56909]
[1642253545751,0.33178273,42966.0,42962.0,0.56909]
[1642253546052,0.1,42966.0,42962.0,0.56909]
[1642253546569,0.1,42966.0,42962.0,0.52429]
[1642253546769,0.00125808,42968.0,42962.0,0.66587144]
[1642253546968,0.4195,42978.0,42962.0,0.52429]
[1642253546969,0.27098264,42972.0,42962.0,0.52429]
[1642253547167,0.27098264,42972.0,42962.0,0.66587144]
[1642253547368,0.00126064,42973.0,42962.0,0.72405665]
[1642253547568,0.3043068,42973.0,42962.0,0.72405665]
[1642253547768,0.3043068,42973.0,42962.0,0.78223944]
[1642253548167,0.3043068,42973.0,42962.0,0.72405744]
[1642253548367,0.4043068,42973.0,42962.0,0.72405744]
[1642253548567,0.66292893,42973.0,42968.0,0.26000553]
[1642253548768,0.374955,42972.0,42968.0,0.26000553]
[1642253548970,0.474955,42972.0,42965.0,0.05818043]
[1642253549176,0.474955,42972.0,42962.0,0.52429]
[1642253549177,0.00125354,42971.0,42962.0,0.52429]
[1642253549572,0.058196,42970.0,42962.0,0.52429]
[1642253549973,0.29449646,42966.0,42962.0,0.52429]
[1642253550173,0.29449646,42966.0,42962.0,0.75429]
[1642253550174,0.25607293,42964.0,42962.0,0.75429]
[1642253551504,0.25607293,42964.0,42962.0,0.70969]
[1642253553503,2.924955,42963.0,42962.0,0.70969]
[1642253554055,3.024955,42963.0,42962.0,0.70969]
[1642253554454,3.119815,42963.0,42962.0,0.70969]
[1642253554656,3.12754301,42963.0,42962.0,0.70969]
[1642253555954,3.11428301,42963.0,42962.0,0.70969]
[1642253556555,3.11428301,42963.0,42962.0,0.66509]
[1642253556957,0.058215,42956.0,42950.0,0.01436839]
[1642253557158,0.374955,42955.0,42950.0,0.01436839]
[1642253557556,0.474955,42955.0,42950.0,0.01436839]
[1642253557805,0.474955,42955.0,42944.0,0.57549869]
[1642253558005,0.27787771,42952.0,42942.0,0.57549869]
[1642253558805,0.00127434,42950.0,42941.0,0.57549869]
[1642253559005,0.24721313,42945.0,42941.0,0.90095345]
[1642253559205,0.00127434,42950.0,42941.0,0.57549869]
[1642253559409,0.31848087,42944.0,42941.0,0.57549869]
[1642253559605,0.41848087,42944.0,42941.0,0.57549869]
[1642253559806,0.41848087,42944.0,42940.0,0.57549869]
[1642253559807,0.1,42944.0,42940.0,0.57549869]
[1642253560105,0.1,42944.0,42941.0,0.23]
[1642253560307,0.1,42944.0,42942.0,0.33235307]
[1642253560506,0.1,42944.0,42941.0,0.23]
[1642253560805,0.33477173,42946.0,42941.0,0.23]
[1642253561204,0.43477173,42946.0,42941.0,0.23]
[1642253561651,0.43477173,42946.0,42941.0,0.1854]
[1642253562251,0.56847011,42946.0,42941.0,0.1854]
[1642253562452,2.41162098,42946.0,42941.0,0.1854]
[1642253562652,2.2779226,42946.0,42941.0,0.1854]
[1642253563657,0.0012956,42944.0,42941.0,0.1854]
[1642253563853,0.0934056,42944.0,42941.0,0.1854]
[1642253564253,0.0816,42942.0,42941.0,0.1854]
[1642253564453,2.55,42942.0,42941.0,0.1804]
[1642253564657,3.02623298,42942.0,42941.0,0.1804]
[1642253565055,3.02623298,42942.0,42941.0,0.1754]
[1642253566513,1.17623298,42942.0,42941.0,0.1307]
[1642253567515,2.02623298,42942.0,42941.0,0.1307]
[1642253567914,1.92623298,42942.0,42941.0,0.1307]
[1642253568114,2.02623298,42942.0,42941.0,0.1307]
[1642253569555,1.17623298,42942.0,42941.0,0.1307]
[1642253569960,0.47623298,42942.0,42941.0,0.1307]
[1642253570357,1.42623298,42942.0,42941.0,0.1307]
[1642253570859,1.42623298,42942.0,42933.0,1.16563136]
[1642253571059,0.34480327,42939.0,42933.0,0.87333136]
[1642253571258,0.058234,42941.0,42933.0,0.87333136]
[1642253571459,0.19310912,42941.0,42933.0,0.82863136]
[1642253571658,0.058234,42941.0,42933.0,0.82863136]
[1642253571860,0.058234,42941.0,42933.0,0.25313267]
[1642253572061,0.28180089,42939.0,42933.0,0.25313267]
[1642253572907,0.28180089,42939.0,42932.0,0.5898731]
[1642253574109,0.28180089,42939.0,42933.0,0.90589445]
[1642253574309,0.1,42941.0,42933.0,0.90589445]
[1642253575212,0.00127798,42942.0,42933.0,0.90589445]
[1642253575408,0.00127798,42942.0,42934.0,0.13034371]
[1642253575611,0.00127798,42942.0,42935.0,0.058223]
[1642253576111,0.00129476,42950.0,42935.0,0.058223]
[1642253576310,0.12280528,42950.0,42935.0,0.058223]
[1642253576554,0.32105509,42947.0,42941.0,0.21730739]
[1642253576755,0.374955,42946.0,42941.0,0.21730739]
[1642253577558,0.374955,42946.0,42938.0,0.57549869]
[1642253577759,0.1,42946.0,42938.0,0.57549869]
[1642253578356,0.1,42946.0,42937.0,0.57549869]
[1642253578559,0.1,42946.0,42939.0,0.26543125]
[1642253578759,0.42105509,42947.0,42939.0,0.26543125]
[1642253579659,0.47928009,42947.0,42939.0,0.26543125]
[1642253580060,0.61191799,42947.0,42939.0,0.26543125]
[1642253580313,0.61310905,42947.0,42937.0,0.57549869]
[1642253580511,0.00123058,42944.0,42937.0,0.57549869]
[1642253580713,0.00123058,42944.0,42938.0,0.57549869]
[1642253580912,0.058232,42942.0,42938.0,0.57549869]
[1642253581312,0.32496409,42940.0,42938.0,0.57549869]
[1642253581513,0.1,42940.0,42935.0,0.82724724]
[1642253581713,0.1,42940.0,42935.0,0.57549869]
[1642253581913,0.38237189,42940.0,42935.0,0.57549869]
[1642253582114,0.38237189,42940.0,42934.0,0.57549869]
[1642253582715,0.33273323,42937.0,42934.0,0.57549869]
[1642253583115,0.43273323,42937.0,42934.0,0.57549869]
[1642253583416,0.1,42937.0,42934.0,0.57549869]
[1642253584050,0.00123058,42944.0,42934.0,0.57549869]
[1642253584454,0.35811677,42941.0,42935.0,0.57549869]
[1642253584850,0.45811677,42941.0,42935.0,0.57549869]
[1642253585455,1.60945601,42936.0,42935.0,0.57549869]
[1642253585850,0.10121301,42936.0,42935.0,0.57549869]
[1642253586650,0.10121301,42936.0,42935.0,0.53079869]
[1642253587051,0.39988277,42941.0,42935.0,0.53079869]
[1642253587251,0.39988277,42941.0,42932.0,0.34382081]
[1642253587252,0.29988277,42941.0,42932.0,0.34382081]
[1642253587451,0.39988277,42941.0,42932.0,0.34382081]
[1642253587652,0.058237,42939.0,42932.0,0.34382081]
[1642253587905,0.25846287,42934.0,42931.0,0.53079869]
[1642253588710,0.25846287,42934.0,42929.0,0.9627]
[1642253588910,0.24865367,42933.0,42929.0,0.9627]
[1642253589106,0.24865367,42933.0,42928.0,0.68743489]
[1642253589707,0.38066658,42933.0,42928.0,0.68743489]
[1642253589908,0.24865367,42933.0,42922.0,0.00230165]
[1642253590121,0.24865367,42933.0,42915.0,0.87937356]
[1642253590122,0.00125288,42916.0,42915.0,0.87937356]
[1642253590312,0.06530288,42916.0,42915.0,1.57842356]
[1642253590511,0.06530288,42916.0,42915.0,0.69905]
[1642253590714,0.06405,42916.0,42915.0,0.69905]
[1642253590913,0.1,42927.0,42915.0,0.69905]
[1642253591109,0.00128126,42923.0,42915.0,0.69905]
[1642253591556,0.374955,42922.0,42920.0,0.28200449]
[1642253591757,0.00128126,42923.0,42920.0,0.23700449]
[1642253593958,0.00128126,42923.0,42921.0,0.13472814]